fUSD/lending_fUSD_20260504
["ID","MTS","AMOUNT","RATE_DAILY","PERIOD"]
[421538779,1777835440000,-500.0,0.00029809,2]
[421538770,1777835440000,-163.53547692,0.000298,2]
[421538763,1777835440000,-225.1,0.00029348,2]
[421538769,1777835440000,-6049.99627281,0.00029773,2]
[421538789,1777835440000,-500.0,0.0002981,60]
[421538755,1777835440000,-1667.66502309,0.00027643,2]
[421538754,1777835440000,-6617.68146127,0.00027367,2]
[421538759,1777835440000,-3222.7538174,0.00028182,2]
[421538757,1777835440000,-308.24,0.00027951,3]
[421538756,1777835440000,-616.46,0.00027951,3]
[421538758,1777835440000,-159.93,0.00028,2]
[421538760,1777835440000,-154.0,0.00028284,2]
[421538764,1777835440000,-782.36764709,0.00029627,2]
[421538765,1777835440000,-5000.0,0.00029711,2]
[421538761,1777835440000,-2500.0,0.0002832,2]
[421538766,1777835440000,-1667.66502303,0.00029743,2]
[421538762,1777835440000,-40240.01369765,0.0002899,2]
[421538767,1777835440000,-156.61996057,0.00029772,2]
[421538771,1777835440000,-227.21153543,0.00029808,7]
[421538768,1777835440000,-1011.00009159,0.00029772,2]
[421538785,1777835440000,-500.0,0.0002981,60]
[421538787,1777835440000,-500.0,0.0002981,60]
[421538824,1777835440000,-644.13,0.0002981,2]
[421538808,1777835440000,-500.0,0.0002981,60]
[421538809,1777835440000,-500.0,0.0002981,60]
[421538810,1777835440000,-500.0,0.0002981,60]
[421538812,1777835440000,-500.0,0.0002981,60]
[421538788,1777835440000,-500.0,0.0002981,60]
[421538818,1777835440000,-500.0,0.0002981,60]
[421538814,1777835440000,-500.0,0.0002981,60]
[421538815,1777835440000,-500.0,0.0002981,60]
[421538819,1777835440000,-500.0,0.0002981,60]
[421538817,1777835440000,-500.0,0.0002981,60]
[421538822,1777835440000,-644.13,0.0002981,2]
[421538820,1777835440000,-500.0,0.0002981,60]
[421538823,1777835440000,-644.13,0.0002981,2]
[421538821,1777835440000,-500.0,0.0002981,60]
[421538816,1777835440000,-500.0,0.0002981,60]
[421538811,1777835440000,-500.0,0.0002981,60]
[421538813,1777835440000,-500.0,0.0002981,60]
[421538806,1777835440000,-500.0,0.0002981,60]
[421538786,1777835440000,-500.0,0.0002981,60]
[421538807,1777835440000,-500.0,0.0002981,60]
[421538793,1777835440000,-500.0,0.0002981,60]
[421538792,1777835440000,-500.0,0.0002981,60]
[421538794,1777835440000,-500.0,0.0002981,10]
[421538797,1777835440000,-500.0,0.0002981,10]
[421538796,1777835440000,-500.0,0.0002981,10]
[421538795,1777835440000,-500.0,0.0002981,10]
[421538799,1777835440000,-500.0,0.0002981,10]
[421538801,1777835440000,-500.0,0.0002981,10]
[421538802,1777835440000,-500.0,0.0002981,10]
[421538800,1777835440000,-500.0,0.0002981,10]
[421538803,1777835440000,-500.0,0.0002981,60]
[421538805,1777835440000,-500.0,0.0002981,60]
[421538804,1777835440000,-500.0,0.0002981,60]
[421538798,1777835440000,-500.0,0.0002981,10]
[421538869,1777835441000,-500.0,0.0002981,60]
[421538865,1777835441000,-500.0,0.0002981,60]
[421538868,1777835441000,-500.0,0.0002981,60]
[421538866,1777835441000,-500.0,0.0002981,60]
[421538864,1777835441000,-500.0,0.0002981,60]
[421538867,1777835441000,-500.0,0.0002981,60]
[421538861,1777835441000,-500.0,0.0002981,2]
[421538862,1777835441000,-500.0,0.0002981,2]
[421538856,1777835441000,-500.0,0.0002981,60]
[421538857,1777835441000,-500.0,0.0002981,2]
[421538860,1777835441000,-500.0,0.0002981,2]
[421538858,1777835441000,-558.37515683,0.0002981,60]
[421538863,1777835441000,-500.0,0.0002981,60]
[421538872,1777835441000,-500.0,0.0002981,60]
[421538884,1777835441000,-3222.7538174,0.00029872,2]
[421538870,1777835441000,-500.0,0.0002981,60]
[421538871,1777835441000,-500.0,0.0002981,60]
[421538873,1777835441000,-200.0,0.0002981,2]
[421538875,1777835441000,-500.0,0.0002981,2]
[421538874,1777835441000,-500.0,0.0002981,2]
[421538879,1777835441000,-500.0,0.0002981,2]
[421538877,1777835441000,-500.0,0.0002981,2]
[421538881,1777835441000,-500.0,0.0002981,2]
[421538878,1777835441000,-500.0,0.0002981,2]
[421538880,1777835441000,-500.0,0.0002981,2]
[421538883,1777835441000,-2380926.8613,0.00029811,2]
[421538882,1777835441000,-500.0,0.0002981,2]
[421538859,1777835441000,-500.0,0.0002981,2]
[421538876,1777835441000,-500.0,0.0002981,2]
[421538855,1777835441000,-500.0,0.0002981,2]
[421538837,1777835441000,-500.0,0.0002981,60]
[421538851,1777835441000,-500.0,0.0002981,60]
[421538825,1777835441000,-644.13,0.0002981,2]
[421538828,1777835441000,-644.13,0.0002981,2]
[421538826,1777835441000,-644.13,0.0002981,2]
[421538827,1777835441000,-644.13,0.0002981,2]
[421538829,1777835441000,-644.13,0.0002981,2]
[421538830,1777835441000,-644.13,0.0002981,2]
[421538833,1777835441000,-429.90812099,0.0002981,60]
[421538831,1777835441000,-644.13,0.0002981,2]
[421538832,1777835441000,-500.0,0.0002981,60]
[421538834,1777835441000,-500.0,0.0002981,60]
[421538835,1777835441000,-500.0,0.0002981,60]
[421538836,1777835441000,-500.0,0.0002981,60]
[421538838,1777835441000,-500.0,0.0002981,60]
[421538841,1777835441000,-500.0,0.0002981,60]
[421538839,1777835441000,-500.0,0.0002981,60]
[421538842,1777835441000,-500.0,0.0002981,60]
[421538840,1777835441000,-500.0,0.0002981,60]
[421538844,1777835441000,-500.0,0.0002981,60]
[421538847,1777835441000,-500.0,0.0002981,60]
[421538849,1777835441000,-500.0,0.0002981,60]
[421538843,1777835441000,-500.0,0.0002981,60]
[421538848,1777835441000,-500.0,0.0002981,2]
[421538846,1777835441000,-633.68130695,0.0002981,60]
[421538845,1777835441000,-500.0,0.0002981,60]
[421538850,1777835441000,-500.0,0.0002981,2]
[421538853,1777835441000,-500.0,0.0002981,2]
[421538852,1777835441000,-500.0,0.0002981,2]
[421538854,1777835441000,-500.0,0.0002981,60]
[421538887,1777835441000,-3359.15,0.000299,7]
[421538921,1777835441000,-6049.99627277,0.00033749,2]
[421538886,1777835441000,-500.0,0.00029873,5]
[421538920,1777835441000,-506.0,0.00033742,30]
[421538926,1777835441000,-200.0,0.00033827,10]
[421538923,1777835441000,-1267.0,0.00033823,2]
[421538925,1777835441000,-562.936,0.00033823,2]
[421538922,1777835441000,-466.58,0.00033799,2]
[421538927,1777835441000,-1667.66502303,0.00033942,2]
[421538924,1777835441000,-1221.0,0.00033823,2]
[421538928,1777835441000,-5200.6559103,0.00033964,2]
[421538929,1777835441000,-5200.6559103,0.00033968,2]
[421538930,1777835441000,-163.53547689,0.00034004,2]
[421538931,1777835441000,-313.0,0.00034154,5]
[421538934,1777835441000,-500.0,0.00034247,2]
[421538933,1777835441000,-5200.6559103,0.00034193,2]
[421538935,1777835441000,-5200.6559103,0.000343,2]
[421538938,1777835441000,-500.0,0.00034499,2]
[421538937,1777835441000,-644.13,0.00034499,2]
[421538932,1777835441000,-5200.6559103,0.00034165,2]
[421538936,1777835441000,-500.0,0.00034499,60]
[421538939,1777835441000,-500.0,0.00034499,60]
[421538941,1777835441000,-162.45035992,0.000345,7]
[421538940,1777835441000,-3359.15,0.000345,7]
[421538942,1777835441000,-5200.6559103,0.00034617,2]
[421538943,1777835441000,-520.0,0.00034689,10]
[421538945,1777835441000,-3155.582,0.00034712,39]
[421538944,1777835441000,-5200.6559103,0.00034696,2]
[421538947,1777835441000,-1865.3,0.000349,14]
[421538889,1777835441000,-500.0,0.0002991,60]
[421538919,1777835441000,-383.0,0.00033742,30]
[421538915,1777835441000,-3197.09421953,0.00033616,2]
[421538946,1777835441000,-166.66,0.00034894,2]
[421538914,1777835441000,-166.66,0.00033564,2]
[421538918,1777835441000,-603.0,0.00033742,30]
[421538888,1777835441000,-1865.3,0.000299,14]
[421538885,1777835441000,-227.98222448,0.00029873,5]
[421538893,1777835441000,-500.0,0.0002991,2]
[421538892,1777835441000,-500.0,0.0002991,60]
[421538894,1777835441000,-200.0,0.0003,2]
[421538891,1777835441000,-500.0,0.0002991,60]
[421538895,1777835441000,-200.0,0.0003,2]
[421538897,1777835441000,-1707.4945097,0.000311,7]
[421538899,1777835441000,-164.0,0.00031256,30]
[421538900,1777835441000,-3222.7538174,0.00031561,2]
[421538902,1777835441000,-255.0,0.00031866,5]
[421538901,1777835441000,-1667.66502303,0.00031842,2]
[421538896,1777835441000,-6049.99627277,0.00031098,2]
[421538890,1777835441000,-500.0,0.0002991,10]
[421538903,1777835441000,-163.53547689,0.00031902,2]
[421538904,1777835441000,-466.58,0.00032189,2]
[421538905,1777835441000,-166.66,0.00032234,2]
[421538906,1777835441000,-166.02220432,0.00032256,30]
[421538908,1777835441000,-466.58,0.00032726,2]
[421538910,1777835441000,-183.58,0.00032823,2]
[421538913,1777835441000,-466.58,0.00033262,2]
[421538909,1777835441000,-172.23,0.00032757,120]
[421538907,1777835441000,-6049.99627277,0.00032423,2]
[421538898,1777835441000,-703.15787623,0.00031144,2]
[421538911,1777835441000,-894.97,0.00032858,120]
[421538912,1777835441000,-3222.7538174,0.00033251,2]
[421538917,1777835441000,-2333.37748605,0.00033616,2]
[421538916,1777835441000,-2574.52178692,0.00033616,2]
[421538989,1777835442000,-392.0,0.00037971,2]
[421538993,1777835442000,-392.0,0.00037982,2]
[421538983,1777835442000,-390.0,0.00037958,2]
[421538987,1777835442000,-379.0,0.00037971,2]
[421538985,1777835442000,-379.0,0.00037961,2]
[421538979,1777835442000,-392.0,0.00037924,2]
[421538988,1777835442000,-379.0,0.00037971,2]
[421538984,1777835442000,-379.0,0.00037959,2]
[421538982,1777835442000,-392.0,0.00037956,2]
[421538981,1777835442000,-392.0,0.00037948,2]
[421538980,1777835442000,-508.0,0.00037931,2]
[421538986,1777835442000,-392.0,0.00037965,2]
[421538991,1777835442000,-392.0,0.00037975,2]
[421538999,1777835442000,-407.0,0.00038015,2]
[421538990,1777835442000,-392.0,0.00037972,2]
[421538994,1777835442000,-379.0,0.00037986,2]
[421538997,1777835442000,-392.0,0.00037997,2]
[421538995,1777835442000,-392.0,0.00037987,2]
[421538998,1777835442000,-246.0,0.00038005,2]
[421539000,1777835442000,-392.0,0.00038016,2]
[421538996,1777835442000,-379.0,0.00037991,2]
[421539001,1777835442000,-161.3433,0.00038019,2]
[421539003,1777835442000,-200.0,0.00038027,10]
[421539002,1777835442000,-392.0,0.00038019,2]
[421539006,1777835442000,-727.24,0.00038034,30]
[421538977,1777835442000,-6049.99627277,0.00037724,2]
[421539004,1777835442000,-1053.72,0.00038034,30]
[421538992,1777835442000,-379.0,0.00037979,2]
[421538978,1777835442000,-392.0,0.0003792,2]
[421538961,1777835442000,-158.37,0.00036133,2]
[421538975,1777835442000,-1865.3,0.000374,14]
[421539005,1777835442000,-345.98,0.00038034,30]
[421538950,1777835442000,-3222.7538174,0.00034941,2]
[421538949,1777835442000,-5200.6559103,0.00034931,2]
[421538951,1777835442000,-6049.99627277,0.00035074,2]
[421538948,1777835442000,-5200.6559103,0.00034906,2]
[421538952,1777835442000,-5200.6559103,0.00035127,2]
[421538954,1777835442000,-5200.6559103,0.00035569,2]
[421538953,1777835442000,-5200.6559103,0.00035207,2]
[421538955,1777835442000,-183.58,0.00035746,2]
[421538956,1777835442000,-894.97,0.00035845,120]
[421538958,1777835442000,-5200.6559103,0.00035978,2]
[421538960,1777835442000,-163.53547689,0.00036106,2]
[421538957,1777835442000,-5200.6559103,0.00035923,2]
[421538963,1777835442000,-1049.0,0.00036316,2]
[421538959,1777835442000,-1667.66502303,0.00036042,2]
[421538962,1777835442000,-166.66,0.00036224,2]
[421538964,1777835442000,-623.0,0.00036316,2]
[421538966,1777835442000,-6049.99627277,0.00036399,2]
[421538965,1777835442000,-3533.0,0.00036316,2]
[421538967,1777835442000,-3359.15,0.000366,7]
[421538968,1777835442000,-307.0,0.000366,2]
[421538970,1777835442000,-3222.7538174,0.00036631,2]
[421538974,1777835442000,-416.0,0.00036823,2]
[421538973,1777835442000,-1221.0,0.00036823,2]
[421538972,1777835442000,-1267.0,0.00036823,2]
[421538971,1777835442000,-658.17697537,0.00036817,5]
[421538976,1777835442000,-166.66,0.00037554,2]
[421538969,1777835442000,-1000.0,0.000366,2]
[421539014,1777835442000,-379.0,0.00038049,2]
[421539088,1777835442000,-450.74402986,0.00038278,2]
[421539007,1777835442000,-237.89,0.00038034,30]
[421539060,1777835442000,-379.0,0.00038168,2]
[421539061,1777835442000,-379.0,0.00038173,2]
[421539062,1777835442000,-379.0,0.00038175,2]
[421539065,1777835442000,-407.0,0.00038176,2]
[421539072,1777835442000,-379.0,0.00038201,2]
[421539071,1777835442000,-379.0,0.00038197,2]
[421539069,1777835442000,-407.0,0.00038184,2]
[421539068,1777835442000,-379.0,0.00038177,2]
[421539073,1777835442000,-379.0,0.00038205,2]
[421539070,1777835442000,-354.18762888,0.0003819,2]
[421539075,1777835442000,-379.0,0.00038206,2]
[421539080,1777835442000,-407.0,0.00038215,2]
[421539077,1777835442000,-163.53547689,0.00038208,2]
[421539083,1777835442000,-308.80035792,0.00038278,2]
[421539081,1777835442000,-675.23,0.0003823,7]
[421539082,1777835442000,-1144.24336667,0.00038278,2]
[421539085,1777835442000,-310.10110385,0.00038278,2]
[421539084,1777835442000,-862.2151725,0.00038278,2]
[421539086,1777835442000,-462.67536322,0.00038278,2]
[421539087,1777835442000,-433.53989763,0.00038278,2]
[421539094,1777835442000,-1091.89164942,0.00038278,2]
[421539090,1777835442000,-300.0,0.00038278,2]
[421539089,1777835442000,-494.88604149,0.00038278,2]
[421539091,1777835442000,-482.8546576,0.00038278,2]
[421539092,1777835442000,-309.0528839,0.00038278,2]
[421539095,1777835442000,-491.42621558,0.00038278,2]
[421539008,1777835442000,-392.0,0.00038035,2]
[421539058,1777835442000,-407.0,0.0003815,2]
[421539056,1777835442000,-390.0,0.00038148,2]
[421539093,1777835442000,-300.0,0.00038278,2]
[421539055,1777835442000,-1667.66502303,0.00038142,2]
[421539039,1777835442000,-392.0,0.00038125,2]
[421539012,1777835442000,-392.0,0.00038046,2]
[421539015,1777835442000,-390.0,0.00038054,2]
[421539010,1777835442000,-379.0,0.00038037,2]
[421539011,1777835442000,-392.0,0.00038045,2]
[421539009,1777835442000,-407.0,0.00038037,2]
[421539017,1777835442000,-379.0,0.00038058,2]
[421539016,1777835442000,-379.0,0.00038057,2]
[421539018,1777835442000,-392.0,0.00038059,2]
[421539020,1777835442000,-379.0,0.00038073,2]
[421539023,1777835442000,-392.0,0.0003809,2]
[421539022,1777835442000,-379.0,0.00038089,2]
[421539021,1777835442000,-407.0,0.00038075,2]
[421539019,1777835442000,-392.0,0.00038072,2]
[421539013,1777835442000,-407.0,0.00038047,2]
[421539026,1777835442000,-152.0,0.00038095,30]
[421539042,1777835442000,-379.0,0.00038127,2]
[421539028,1777835442000,-390.0,0.00038102,2]
[421539053,1777835442000,-390.0,0.00038141,2]
[421539049,1777835442000,-407.0,0.00038139,2]
[421539051,1777835442000,-392.0,0.00038141,2]
[421539046,1777835442000,-411.0,0.00038137,2]
[421539044,1777835442000,-379.0,0.00038133,2]
[421539030,1777835442000,-152.0,0.00038107,30]
[421539031,1777835442000,-379.0,0.00038108,2]
[421539036,1777835442000,-379.0,0.00038125,2]
[421539033,1777835442000,-392.0,0.0003812,2]
[421539024,1777835442000,-392.0,0.00038093,2]
[421539034,1777835442000,-392.0,0.00038124,2]
[421539128,1777835443000,-1064.20055128,0.00038278,2]
[421539127,1777835443000,-526.39557632,0.00038278,2]
[421539129,1777835443000,-891.13316488,0.00038278,2]
[421539120,1777835443000,-300.0,0.00038278,2]
[421539138,1777835443000,-500.0,0.00038526,60]
[421539134,1777835443000,-300.0,0.00038278,2]
[421539131,1777835443000,-724.19402235,0.00038278,2]
[421539132,1777835443000,-301.02040482,0.00038278,2]
[421539137,1777835443000,-3222.7538174,0.0003832,2]
[421539126,1777835443000,-300.0,0.00038278,2]
[421539130,1777835443000,-308.86043429,0.00038278,2]
[421539135,1777835443000,-852.02203048,0.00038278,2]
[421539139,1777835443000,-500.0,0.00038526,60]
[421539136,1777835443000,-162.0,0.0003828,11]
[421539141,1777835443000,-500.0,0.00038526,7]
[421539140,1777835443000,-500.0,0.00038526,60]
[421539144,1777835443000,-1600.0,0.00038699,2]
[421539145,1777835443000,-1600.0,0.00038699,2]
[421539142,1777835443000,-162.0,0.000386,11]
[421539146,1777835443000,-1600.0,0.00038699,2]
[421539143,1777835443000,-162.0,0.00038669,11]
[421539121,1777835443000,-1091.89164942,0.00038278,2]
[421539150,1777835443000,-1600.0,0.00038699,2]
[421539133,1777835443000,-300.0,0.00038278,2]
[421539124,1777835443000,-491.42621558,0.00038278,2]
[421539109,1777835443000,-343.10293342,0.00038278,2]
[421539118,1777835443000,-482.8546576,0.00038278,2]
[421539148,1777835443000,-1600.0,0.00038699,2]
[421539099,1777835443000,-526.39557632,0.00038278,2]
[421539098,1777835443000,-300.0,0.00038278,2]
[421539096,1777835443000,-398.0507618,0.00038278,2]
[421539097,1777835443000,-602.92697109,0.00038278,2]
[421539100,1777835443000,-1064.20055128,0.00038278,2]
[421539102,1777835443000,-308.86043429,0.00038278,2]
[421539101,1777835443000,-891.13316488,0.00038278,2]
[421539103,1777835443000,-724.19402235,0.00038278,2]
[421539104,1777835443000,-301.02040482,0.00038278,2]
[421539106,1777835443000,-300.0,0.00038278,2]
[421539105,1777835443000,-300.0,0.00038278,2]
[421539107,1777835443000,-852.02203048,0.00038278,2]
[421539108,1777835443000,-1791.83489269,0.00038278,2]
[421539114,1777835443000,-462.67536322,0.00038278,2]
[421539110,1777835443000,-1144.24336667,0.00038278,2]
[421539112,1777835443000,-862.2151725,0.00038278,2]
[421539111,1777835443000,-308.80035792,0.00038278,2]
[421539113,1777835443000,-310.10110385,0.00038278,2]
[421539116,1777835443000,-450.74402986,0.00038278,2]
[421539117,1777835443000,-300.0,0.00038278,2]
[421539115,1777835443000,-433.53989763,0.00038278,2]
[421539122,1777835443000,-389.31959879,0.00038278,2]
[421539119,1777835443000,-309.0528839,0.00038278,2]
[421539125,1777835443000,-602.92697109,0.00038278,2]
[421539123,1777835443000,-304.83657576,0.00038278,2]
[421539149,1777835443000,-1600.0,0.00038699,2]
[421539158,1777835443000,-20730.92810566,0.00038783,2]
[421539151,1777835443000,-1600.0,0.00038699,2]
[421539182,1777835443000,-162.0,0.00039629,11]
[421539186,1777835443000,-700.0,0.0003987,2]
[421539184,1777835443000,-1267.0,0.00039823,2]
[421539183,1777835443000,-461.8,0.00039671,2]
[421539185,1777835443000,-1221.0,0.00039823,2]
[421539187,1777835443000,-1841.53,0.00039892,2]
[421539188,1777835443000,-4396.0626374,0.000399,2]
[421539191,1777835443000,-169.02069528,0.0003991,8]
[421539194,1777835443000,-500.0,0.00039969,60]
[421539193,1777835443000,-162.0,0.00039947,11]
[421539197,1777835443000,-675.23,0.00039994,7]
[421539179,1777835443000,-200.358462,0.000395,18]
[421539196,1777835443000,-675.23,0.00039994,7]
[421539199,1777835443000,-500.0,0.00039999,60]
[421539200,1777835443000,-500.0,0.00039999,60]
[421539198,1777835443000,-461.8,0.00039996,2]
[421539201,1777835443000,-500.0,0.00039999,7]
[421539147,1777835443000,-1600.0,0.00038699,2]
[421539204,1777835443000,-2667.0,0.0004,30]
[421539203,1777835443000,-675.23,0.00039999,7]
[421539205,1777835443000,-3222.7538174,0.0004001,15]
[421539207,1777835443000,-312.2624174,0.00040256,2]
[421539206,1777835443000,-197.97303143,0.00040068,2]
[421539208,1777835443000,-162.0,0.00040281,11]
[421539195,1777835443000,-500.0,0.00039969,7]
[421539180,1777835443000,-162.0,0.0003956,11]
[421539202,1777835443000,-500.0,0.00039999,7]
[421539178,1777835443000,-675.23,0.00039499,7]
[421539181,1777835443000,-162.0,0.00039577,11]
[421539154,1777835443000,-500.0,0.00038722,60]
[421539153,1777835443000,-1120.0,0.00038699,2]
[421539152,1777835443000,-1600.0,0.00038699,2]
[421539156,1777835443000,-500.0,0.00038722,60]
[421539162,1777835443000,-162.0,0.00038937,11]
[421539163,1777835443000,-152.99,0.00038989,2]
[421539161,1777835443000,-1580.0,0.0003892,11]
[421539157,1777835443000,-500.0,0.00038722,7]
[421539160,1777835443000,-675.23,0.00038899,7]
[421539159,1777835443000,-1010.79488586,0.00038799,2]
[421539165,1777835443000,-168.69,0.00039008,2]
[421539155,1777835443000,-500.63745872,0.00038722,60]
[421539166,1777835443000,-461.8,0.00039021,2]
[421539164,1777835443000,-3359.15,0.00039,7]
[421539177,1777835443000,-500.0,0.00039499,7]
[421539176,1777835443000,-500.0,0.00039499,60]
[421539175,1777835443000,-500.0,0.00039499,60]
[421539173,1777835443000,-10904.72628288,0.00039399,2]
[421539172,1777835443000,-461.8,0.00039346,2]
[421539169,1777835443000,-1580.0,0.0003924,11]
[421539168,1777835443000,-200.72458194,0.00039225,2]
[421539170,1777835443000,-152.99,0.00039309,2]
[421539167,1777835443000,-6049.99627277,0.0003905,2]
[421539171,1777835443000,-623.0,0.00039316,2]
[421539174,1777835443000,-1865.3,0.000394,14]
[421539232,1777835444000,-500.0,0.00040995,60]
[421539234,1777835444000,-644.13,0.00040995,2]
[421539235,1777835444000,-644.13,0.00040995,2]
[421539230,1777835444000,-461.82950616,0.00040972,2]
[421539231,1777835444000,-500.48979342,0.00040973,5]
[421539238,1777835444000,-644.13,0.00040995,2]
[421539237,1777835444000,-644.13,0.00040995,2]
[421539241,1777835444000,-500.0,0.00040995,2]
[421539245,1777835444000,-148154.45026698,0.00040996,42]
[421539239,1777835444000,-644.13,0.00040995,2]
[421539243,1777835444000,-500.0,0.00040995,60]
[421539242,1777835444000,-151.43222836,0.00040995,2]
[421539246,1777835444000,-435222.76455358,0.00040996,2]
[421539209,1777835444000,-1580.0,0.00040281,11]
[421539248,1777835444000,-388.94193208,0.000299,7]
[421539247,1777835444000,-162.82444385,0.000299,7]
[421539250,1777835444000,-644.0,0.000328,7]
[421539240,1777835444000,-500.0,0.00040995,2]
[421539233,1777835444000,-501.73166366,0.00040995,60]
[421539217,1777835444000,-350.0,0.00040364,2]
[421539228,1777835444000,-1580.0,0.00040921,11]
[421539210,1777835444000,-3359.15,0.000403,7]
[421539211,1777835444000,-163.53547689,0.0004031,2]
[421539214,1777835444000,-500.0,0.00040356,21]
[421539212,1777835444000,-461.8,0.00040322,2]
[421539213,1777835444000,-302.0,0.0004035,11]
[421539216,1777835444000,-1580.0,0.00040358,11]
[421539215,1777835444000,-1000.0,0.00040356,21]
[421539218,1777835444000,-6049.99627277,0.00040375,15]
[421539220,1777835444000,-1580.0,0.00040637,11]
[421539219,1777835444000,-1010.79488584,0.00040606,2]
[421539222,1777835444000,-1865.3,0.000407,14]
[421539221,1777835444000,-461.8,0.00040647,2]
[421539224,1777835444000,-1580.0,0.0004072,11]
[421539225,1777835444000,-5360.07846881,0.0004074,2]
[421539223,1777835444000,-162.0,0.0004072,11]
[421539227,1777835444000,-500.0,0.00040899,7]
[421539226,1777835444000,-500.0,0.00040899,60]
[421539229,1777835444000,-675.23,0.00040949,7]
[421539249,1777835444000,-92.23362407,0.000299,7]
[421539236,1777835444000,-644.13,0.00040995,2]
[421539253,1777835444000,-766.0,0.00034689,30]
[421539275,1777835444000,-312.26241738,0.00041334,2]
[421539276,1777835444000,-1580.0,0.00041375,11]
[421539278,1777835444000,-400.0,0.0004147,3]
[421539277,1777835444000,-1000.0,0.00041378,93]
[421539279,1777835444000,-200.0,0.000415,21]
[421539282,1777835444000,-1580.0,0.00041561,11]
[421539281,1777835444000,-1580.0,0.00041561,11]
[421539287,1777835444000,-162.0,0.00041695,11]
[421539272,1777835444000,-1000.0,0.00041178,120]
[421539283,1777835444000,-705.49471,0.0004162,120]
[421539280,1777835444000,-675.23,0.00041522,7]
[421539285,1777835444000,-1000.0,0.00041642,31]
[421539286,1777835444000,-1000.0,0.00041642,70]
[421539289,1777835444000,-1000.0,0.00041699,7]
[421539288,1777835444000,-644.13,0.00041699,2]
[421539291,1777835444000,-25215.9637,0.000417,2]
[421539290,1777835444000,-1000.0,0.00041699,14]
[421539251,1777835444000,-928.0,0.00033823,2]
[421539284,1777835444000,-478.24,0.0004163,2]
[421539268,1777835444000,-400.0,0.0004107,3]
[421539244,1777835444000,-512.67718847,0.00040995,60]
[421539269,1777835444000,-200.0,0.00041096,20]
[421539258,1777835444000,-644.0,0.00038,7]
[421539270,1777835444000,-4396.06263739,0.00041156,2]
[421539260,1777835444000,-343.10293342,0.00038278,2]
[421539252,1777835444000,-644.0,0.000344,7]
[421539259,1777835444000,-1791.83489269,0.00038278,2]
[421539256,1777835444000,-1011.00009158,0.00035932,2]
[421539255,1777835444000,-644.0,0.000359,7]
[421539257,1777835444000,-928.0,0.00036823,2]
[421539262,1777835444000,-500.0,0.00040999,60]
[421539254,1777835444000,-253.0,0.00034689,30]
[421539265,1777835444000,-1580.0,0.00041002,11]
[421539263,1777835444000,-500.0,0.00040999,7]
[421539274,1777835444000,-1580.0,0.0004131,11]
[421539264,1777835444000,-309.61334216,0.00041,7]
[421539267,1777835444000,-162.0,0.0004105,11]
[421539273,1777835444000,-164.0,0.00041241,11]
[421539266,1777835444000,-200.0,0.00041013,10]
[421539271,1777835444000,-169.02069528,0.00041161,8]
[421539261,1777835444000,-1064777.23544642,0.00040996,2]
[421539304,1777835445000,-500.0,0.00041799,7]
[421539305,1777835445000,-500.0,0.00041799,10]
[421539301,1777835445000,-500.0,0.00041799,60]
[421539302,1777835445000,-500.0,0.00041799,60]
[421539300,1777835445000,-62472.6418626,0.00041741,2]